lending/lending_fUSD_20240806
["ID","MTS","AMOUNT","RATE_DAILY","PERIOD"]
[334294547,1722918642651,-3805.80185951,0.00010996,2]
[334294548,1722918642664,-7140.0,0.00010996,2]
[334294549,1722918642711,-1127.89444011,0.00010996,2]
[334294550,1722918642727,-294.14994472,0.00010996,2]
[334294551,1722918642772,-4312.73879703,0.00010996,2]
[334294552,1722918642784,-2305.39813069,0.00010996,2]
[334294553,1722918642832,-511.75073949,0.00010996,2]
[334294556,1722918645780,-6722.5665,0.00010996,2]
[334294563,1722918645843,-1561.96076098,0.00010996,2]
[334294565,1722918645853,-2716.8914183,0.00010998,2]
[334294567,1722918645862,-338.52041999,0.00010999,2]
[334294569,1722918645872,-500.0,0.00010999,2]
[334294571,1722918645882,-500.0,0.00010999,2]
[334294573,1722918645892,-500.0,0.00010999,2]
[334294575,1722918645907,-500.0,0.00010999,2]
[334294576,1722918645918,-500.0,0.00010999,2]
[334294577,1722918645928,-500.0,0.00010999,2]
[334294578,1722918645938,-500.0,0.00010999,2]
[334294579,1722918645950,-500.0,0.00010999,2]
[334294580,1722918645960,-500.0,0.00010999,2]
[334294581,1722918645970,-500.0,0.00010999,2]
[334294582,1722918645982,-500.0,0.00010999,2]
[334294583,1722918645991,-500.0,0.00010999,2]
[334294584,1722918646000,-600.4067237,0.00010999,2]
[334294585,1722918646009,-5000.0,0.00010999,2]
[334294586,1722918646019,-5000.0,0.00010999,2]
[334294587,1722918646028,-5000.0,0.00010999,2]
[334294588,1722918646037,-5000.0,0.00010999,2]
[334294589,1722918646047,-5000.0,0.00010999,2]
[334294590,1722918646056,-5000.0,0.00010999,2]
[334294591,1722918646067,-1099.74522859,0.00010999,2]
[334294593,1722918646076,-13429.69162562,0.00011,2]
[334294598,1722918662054,14353.97907086,8.219e-05,2]
[334294599,1722918676454,14353.97907086,8.219e-05,2]
[334294602,1722918791472,5534.13336996,8.219e-05,2]
[334294603,1722918801727,500.0,8.153e-05,2]
[334294604,1722918802094,500.0,0.00024932,120]
[334294605,1722919122660,262.73,8.304e-05,2]
[334294606,1722919403458,500.0,0.00024932,120]
[334294612,1722919565380,257.21,8.297e-05,2]
[334294646,1722919831746,-300.0,9.961e-05,2]
[334294647,1722919831756,-6626.27098902,9.962e-05,2]
[334294648,1722919831765,-39133.8863501,9.962e-05,2]
[334294649,1722919831775,-314.2290075,0.0001,2]
[334294650,1722919831785,-500.0,0.0001,2]
[334294651,1722919831795,-500.0,0.0001,2]
[334294652,1722919831805,-500.0,0.0001,2]
[334294653,1722919831815,-500.0,0.0001,2]
[334294654,1722919831825,-500.0,0.0001,2]
[334294655,1722919831835,-500.0,0.0001,2]
[334294656,1722919831844,-500.0,0.0001,2]
[334294657,1722919831854,-500.0,0.0001,2]
[334294658,1722919831864,-500.0,0.0001,2]
[334294659,1722919831874,-109.13768437,0.0001,2]
[334294660,1722919831890,-390.86231563,0.0001,2]
[334294661,1722919831900,-193.73319141,0.0001,2]
[334294662,1722919831911,-306.26680859,0.0001,2]
[334294663,1722919831921,-315.05863482,0.0001,2]
[334294664,1722919831933,-184.94136518,0.0001,2]
[334294665,1722919831943,-500.0,0.0001,2]
[334294666,1722919831953,-500.0,0.0001,2]
[334294667,1722919831963,-500.0,0.0001,2]
[334294668,1722919831973,-500.0,0.0001,2]
[334294669,1722919831983,-500.0,0.0001,2]
[334294670,1722919831994,-500.0,0.0001,2]
[334294671,1722919832004,-500.0,0.0001,2]
[334294672,1722919832013,-167.64073246,0.0001,2]
[334294725,1722919837772,-332.35926754,0.0001,2]
[334294726,1722919837782,-500.0,0.0001,2]
[334294727,1722919837791,-375.55323024,0.0001,2]
[334294728,1722919837829,-124.44676976,0.0001,2]
[334294729,1722919837839,-500.0,0.0001,2]
[334294730,1722919837848,-500.0,0.0001,2]
[334294731,1722919837858,-500.0,0.0001,2]
[334294732,1722919837867,-500.0,0.0001,2]
[334294733,1722919837878,-500.0,0.0001,2]
[334294734,1722919837887,-500.0,0.0001,2]
[334294735,1722919837896,-500.0,0.0001,2]
[334294736,1722919837905,-500.0,0.0001,2]
[334294737,1722919837916,-500.0,0.0001,2]
[334294738,1722919837926,-500.0,0.0001,2]
[334294739,1722919837935,-500.0,0.0001,2]
[334294740,1722919837944,-500.0,0.0001,2]
[334294741,1722919837956,-500.0,0.0001,2]
[334294742,1722919837965,-500.0,0.0001,2]
[334294743,1722919837974,-500.0,0.0001,2]
[334294744,1722919837984,-390.72,0.0001,2]
[334294745,1722919837993,-500.0,0.0001,2]
[334294746,1722919838003,-500.0,0.0001,2]
[334294747,1722919838014,-500.0,0.0001,2]
[334294748,1722919838025,-500.0,0.0001,2]
[334294749,1722919838035,-500.0,0.0001,2]
[334294750,1722919838046,-500.0,0.0001,2]
[334294751,1722919838057,-500.0,0.0001,2]
[334294752,1722919838067,-500.0,0.0001,2]
[334294753,1722919838076,-500.0,0.0001,2]
[334294754,1722919838085,-500.0,0.0001,2]
[334294755,1722919838095,-500.0,0.0001,2]
[334294756,1722919838105,-500.0,0.0001,2]
[334294757,1722919838115,-88.31547687,0.0001,2]
[334294758,1722919838128,-411.68452313,0.0001,2]
[334294759,1722919838137,-500.0,0.0001,2]
[334294760,1722919838147,-500.0,0.0001,2]
[334294761,1722919838157,-500.0,0.0001,2]
[334294762,1722919838168,-500.0,0.0001,2]
[334294763,1722919838178,-500.0,0.0001,2]
[334294764,1722919838188,-500.0,0.0001,2]
[334294765,1722919838198,-500.0,0.0001,2]
[334294766,1722919838208,-500.0,0.0001,2]
[334294767,1722919838218,-500.0,0.0001,2]
[334294768,1722919838227,-500.0,0.0001,2]
[334294769,1722919838237,-250.0,0.00010025,2]
[334294770,1722919838246,-289.98099496,0.00010057,2]
[334294771,1722919838255,-174.81,0.0001006,2]
[334294772,1722919838265,-800.0,0.00010145,2]
[334294773,1722919838275,-200.0,0.00010221,2]
[334294775,1722919838286,-159.74,0.00010224,2]
[334294777,1722919838299,-257.21,0.00010561,2]
[334294779,1722919838309,-410.6301,0.00010575,2]
[334294780,1722919838318,-372.86,0.000106,2]
[334294781,1722919838328,-420.73,0.000106,2]
[334294782,1722919838338,-299.99,0.000106,2]
[334294783,1722919838347,-8490.22,0.000106,2]
[334294784,1722919838357,-150.0,0.00010754,2]
[334294785,1722919838367,-150.0,0.0001081,2]
[334294786,1722919838376,-499.99,0.0001081,2]
[334294787,1722919838386,-150.0,0.00010889,2]
[334294788,1722919838396,-10447.7628,0.000109,2]
[334294789,1722919838406,-2973.53942344,0.000109,2]
[334294790,1722919838425,-529.12011047,0.000109,2]
[334294791,1722919838437,-5491.0557844,0.000109,2]
[334294793,1722919838448,-987.54270914,0.000109,2]
[334294857,1722919839831,-500.0,0.0001,2]
[334294858,1722919839840,-709.54095137,0.000109,2]
[334294859,1722919840008,-5079.98412118,0.000109,2]
[334294860,1722919840019,-500.0,0.000109,2]
[334294861,1722919840030,-150.0,0.000109,2]
[334294862,1722919840043,-150.0,0.000109,2]
[334294863,1722919840054,-150.0,0.000109,2]
[334294865,1722919840065,-150.0,0.000109,2]
[334294867,1722919840075,-150.0,0.000109,2]
[334294870,1722919840086,-3411.46594738,0.000109,2]
[334294871,1722919840097,-654.13150173,0.000109,2]
[334294872,1722919840108,-150.0,0.000109,2]
[334294873,1722919840117,-2414.77939529,0.000109,2]
[334294874,1722919840127,-1000.0,0.000109,2]
[334294875,1722919840139,-6705.4722,0.000109,2]
[334294876,1722919840148,-7500.0,0.000109,2]
[334294877,1722919840158,-312.703,0.000109,2]
[334294878,1722919840168,-150.0,0.00010959,2]
[334294879,1722919840178,-653.74,0.00010959,2]
[334294881,1722919840187,-544.79,0.00010959,2]
[334294883,1722919840198,-544.79,0.00010959,2]
[334294885,1722919840208,-363.19,0.00010959,2]
[334294886,1722919840218,-302.66,0.00010959,2]
[334294887,1722919840228,-250.0,0.00010959,2]
[334294888,1722919840237,-252.22,0.00010959,2]
[334294889,1722919840248,-210.18,0.00010959,2]
[334294890,1722919840259,-210.18,0.00010959,2]
[334294891,1722919840270,-150.0,0.00010972,2]
[334294892,1722919840280,-1075.0,0.00010972,2]
[334294893,1722919840291,-154.52,0.0001099,2]
[334294894,1722919840302,-154.52,0.0001099,2]
[334294895,1722919840312,-30140.9347425,0.00010996,2]
[334294896,1722919840322,-2638.77977117,0.00010999,2]
[334294897,1722919840331,-20983.91697953,0.00011,2]
[334294900,1722919842763,-500.0,0.0001,2]
[334294901,1722919842774,-500.0,0.0001,2]
[334294902,1722919842783,-636.88,0.0001,2]
[334294903,1722919842794,-412417.02273937,0.00011,2]
[334294904,1722919842805,-601.56953372,0.00011,2]
[334294906,1722919845876,-1891.09879631,0.00011,2]
[334295083,1722919848622,-846.47514523,0.00011,2]
[334295087,1722920002823,500.0,0.00024932,120]
[334295089,1722920096975,304.3,8.457e-05,2]
[334295090,1722920114824,791.28331312,8.457e-05,2]
[334295091,1722920124474,363.71319874,8.457e-05,2]
[334295094,1722920417632,481.226603,0.00025,120]
[334295097,1722920478644,30772.56849163,0.00025,60]
[334295098,1722920508660,521.080614,0.00025,86]
[334295099,1722920513029,521.080614,0.00025,82]
[334295100,1722920566910,503.080614,0.00025,81]
[334295101,1722920581155,296.76,8.219e-05,2]
[334295102,1722920602041,645.080614,0.00025,80]
[334295149,1722921032000,-922.53142088,9.99e-05,2]
[334295151,1722921032015,-419.17924755,9.99e-05,2]
[334295152,1722921032082,-765.29022052,9.99e-05,2]
[334295153,1722921032144,-315.7795185,9.99e-05,2]
[334295154,1722921032156,-696.77431602,9.99e-05,2]
[334295155,1722921032204,-8396.8524955,9.99e-05,2]
[334295156,1722921032373,-448.12958754,9.99e-05,2]
[334295157,1722921032384,-7450.39419363,9.99e-05,2]
[334295263,1722921037939,-492.40723222,9.99e-05,2]
[334295288,1722921040051,-3962.66176764,9.99e-05,2]
[334295289,1722921040060,-879.89,9.99e-05,2]
[334295290,1722921040071,-191.18457874,9.993e-05,2]
[334295291,1722921040080,-250.0,9.993e-05,2]
[334295292,1722921040089,-264.09558163,0.0001,2]
[334295293,1722921040101,-500.585,0.0001,2]
[334295294,1722921040345,-3818.92530209,0.0001,2]
[334295295,1722921040356,-1125.39411628,0.0001,2]
[334295296,1722921040366,-1000.0,0.00010019,2]
[334295297,1722921040375,-198.43,0.00010227,2]
[334295298,1722921040385,-501.8461727,0.00010251,2]
[334295310,1722921043035,-742.5,0.00010251,2]
[334295311,1722921043146,-12.47593774,0.00010251,2]
[334295312,1722921043155,-522.54034275,0.00010251,2]
[334295313,1722921043164,-155.15699907,0.00010251,2]
[334295314,1722921043173,-170.2,0.00010542,2]
[334295315,1722921043182,-150.0,0.00010599,2]
[334295316,1722921043191,-499.99,0.00010599,2]
[334295317,1722921043199,-150.99,0.00010599,2]
[334295318,1722921043209,-6979.86172036,0.00010599,2]
[334295329,1722921043513,-3020.12827964,0.00010599,2]
[334295330,1722921043523,-360.05,0.000106,2]
[334295331,1722921043537,-188.76,0.000106,2]
[334295332,1722921043546,-150.0,0.000106,2]
[334295333,1722921043555,-150.0,0.000106,2]
[334295334,1722921043564,-356.29,0.000106,2]
[334295335,1722921043574,-300.0,0.000106,2]
[334295336,1722921043583,-834.36,0.000106,2]
[334295337,1722921043593,-834.66,0.000106,2]
[334295338,1722921043602,-150.0,0.000106,2]
[334295339,1722921043611,-356.29,0.000106,2]
[334295340,1722921043621,-150.0,0.000106,2]
[334295341,1722921043631,-355.67,0.000106,2]
[334295342,1722921043640,-150.0,0.000106,2]
[334295343,1722921043650,-1668.9,0.000106,2]
[334295344,1722921043659,-150.99,0.000106,2]
[334295345,1722921043669,-2363.08497841,0.00010721,2]
[334295346,1722921045146,289.59,8.4e-05,2]
[334295381,1722921572906,282.65,8.219e-05,2]
[334295410,1722922111886,3181.80767099,0.00025,60]
[334295470,1722922232140,-381.55,9.747e-05,2]
[334295472,1722922232150,-724.0837689,9.786e-05,2]
[334295474,1722922232162,-555.25579289,9.786e-05,2]
[334295476,1722922232171,-200.0,9.786e-05,2]
[334295478,1722922232180,-193.75892436,9.888e-05,2]
[334295480,1722922232189,-250.0,9.977e-05,2]
[334295482,1722922232199,-800.0,9.978e-05,2]
[334295484,1722922232208,-4792.31244997,0.0001,2]
[334295486,1722922232218,-300.0,0.00010181,2]
[334295487,1722922232227,-155.09590251,0.00010182,2]
[334295488,1722922232237,-156.13920603,0.00010182,2]
[334295489,1722922232247,-301.60973516,0.00010182,2]
[334295490,1722922232266,-627.68,0.00010182,2]
[334295491,1722922232278,-5619.05612154,0.00010182,2]
[334295492,1722922232303,-1500.7981108,0.00010182,2]
[334295493,1722922232314,-1047.0,0.00010182,2]
[334295494,1722922232325,-1016.00057471,0.00010182,2]
[334295495,1722922232359,-960.92161359,0.00010182,2]
[334295496,1722922232371,-1250.98806938,0.00010182,2]
[334295497,1722922232382,-482.77585744,0.00010182,2]
[334295498,1722922232393,-361.03991738,0.00010182,2]
[334295499,1722922232403,-19999.99,0.00010182,2]
[334295500,1722922232412,-150.0,0.000102,2]
[334295501,1722922232422,-150.0,0.000102,2]
[334295502,1722922232433,-169.81,0.00010208,2]
[334295503,1722922232442,-200.0,0.00010222,2]
[334295504,1722922232451,-282.65,0.00010481,2]
[334295505,1722922232461,-529.49,0.000105,2]
[334295506,1722922232470,-161.84,0.000106,2]
[334295508,1722922232480,-4534.59,0.0001061,2]
[334295510,1722922232489,-3000.0,0.0001061,2]
[334295511,1722922232499,-733.68,0.000107,2]
[334295513,1722922232508,-37.05999751,0.000107,2]
[334295539,1722922238154,-112.94000249,0.000107,2]
[334295540,1722922238165,-150.0,0.000107,2]
[334295541,1722922238174,-296.6,0.000107,2]
[334295542,1722922238184,-150.0,0.000107,2]
[334295543,1722922238193,-362.96233374,0.0001075,2]
[334295544,1722922238204,-7015.537408,0.0001075,2]
[334295545,1722922238216,-1969.22712928,0.0001075,2]
[334295546,1722922238227,-3468.438858,0.0001075,2]
[334295547,1722922238236,-1113.43373758,0.0001078,2]
[334295548,1722922238245,-213.55009828,0.0001078,2]
[334295549,1722922238311,-881.12565432,0.0001078,2]
[334295550,1722922238322,-499.99,0.0001078,2]
[334295551,1722922238333,-150.0,0.00010797,2]
[334295552,1722922238343,-123.42085222,0.000108,2]
[334295553,1722922238355,-28.13914778,0.000108,2]
[334295554,1722922238368,-172.84,0.000108,2]
[334295555,1722922238377,-420.73,0.000108,2]
[334295556,1722922238388,-35.74589709,0.000108,2]
[334295557,1722922238427,-114.25410291,0.000108,2]
[334295558,1722922238437,-150.45,0.000108,2]
[334295559,1722922238446,-150.0,0.000108,2]
[334295560,1722922238456,-150.0,0.000108,2]
[334295561,1722922238466,-103.06061746,0.000108,2]
[334295562,1722922238478,-46.93938254,0.000108,2]
[334295563,1722922238487,-150.0,0.000108,2]
[334295564,1722922238497,-129.88282002,0.000108,2]
[334295565,1722922240463,-226.40717998,0.000108,2]
[334295566,1722922240473,-420.73,0.000108,2]
[334295567,1722922240483,-420.73,0.000108,2]
[334295568,1722922240494,-150.0,0.000108,2]
[334295569,1722922240503,-356.29,0.000108,2]
[334295570,1722922240513,-525.6539,0.000108,2]
[334295571,1722922240522,-395.77606318,0.000108,2]
[334295572,1722922240534,-676.92393682,0.000108,2]
[334295573,1722922240545,-1390.89434,0.000108,2]
[334295574,1722922240554,-372.66984158,0.00010899,2]
[334295575,1722922240564,-1906.79616494,0.00010899,2]
[334295576,1722922240575,-1163.52318772,0.00010899,2]
[334295577,1722922240584,-750.14975411,0.000109,2]
[334295578,1722922240594,-779.97615952,0.000109,2]
[334295579,1722922243278,-383.36694048,0.000109,2]
[334295580,1722922243288,-216.8978,0.000109,2]
[334295581,1722922243298,-1796.26891982,0.000109,2]
[334295582,1722922243309,-21478.14258018,0.000109,2]
[334295583,1722922243319,-150.0,0.000109,2]
[334295584,1722922243328,-379.34,0.000109,2]
[334295585,1722922243337,-150.0,0.000109,2]
[334295586,1722922243346,-356.25,0.000109,2]
[334295587,1722922243355,-504.58,0.000109,2]
[334295588,1722922243366,-420.73,0.000109,2]
[334295589,1722922243376,-356.29,0.000109,2]
[334295590,1722922243385,-23590.386,0.000109,2]
[334295591,1722922243395,-2341.58278317,0.000109,2]
[334295592,1722922243404,-169.48643277,0.000109,2]
[334295593,1722922243414,-8778.81,0.00010959,2]
[334295594,1722922243423,-250.0,0.00010959,2]
[334295595,1722922243433,-3291.87,0.00010959,2]
[334295596,1722922243442,-11708.42,0.00010959,2]
[334295597,1722922243451,-840.74,0.00010959,2]
[334295598,1722922243461,-151.0,0.00010959,2]
[334295599,1722922243470,-151.415143,0.00010959,2]
[334295600,1722922243479,-151.0,0.00010959,2]
[334295601,1722922243488,-151.0,0.00010959,2]
[334295602,1722922243497,-444.247,0.00010972,2]
[334295603,1722922243506,-987.066,0.00010972,2]
[334295604,1722922243515,-5086.97445602,0.00010996,2]
[334295605,1722922243524,-173.531651,0.00010998,2]
[334295606,1722922243534,-682.9012377,0.00010998,2]
[334295607,1722922243543,-2311.1450506,0.00010998,2]
[334295608,1722922243552,-1859.3907913,0.00010998,2]
[334295609,1722922243561,-2431.5461717,0.00010998,2]
[334295610,1722922243570,-900.0,0.00011,2]
[334295611,1722922243579,-8306.58270249,0.00011,2]
[334295612,1722922243590,-482.00237009,0.00011,2]
[334295648,1722922244056,-596.07694126,0.00011,2]
[334295650,1722922244068,-636.87818,0.00011,2]
[334295652,1722922244082,-303927.07421044,0.00011,2]
[334295653,1722922244093,-12611.58875453,0.00011,2]
[334295654,1722922244104,-343.69288208,0.00011,2]
[334295655,1722922244118,-1013.27421864,0.00011,2]
[334295656,1722922244129,-392.29490377,0.00011,2]
[334295657,1722922244141,-529.60407928,0.00011,2]
[334295658,1722922244162,-7107.51101705,0.00011,2]
[334295659,1722922244173,-305.20127118,0.00011,2]
[334295660,1722922244184,-397.66172814,0.00011,2]
[334295666,1722922246559,-389.63124367,0.00011,2]
[334295667,1722922246570,-344.831931,0.00011,2]
[334295668,1722922246582,-349.09336135,0.00011,2]
[334295680,1722922372821,261.92,8.632e-05,2]
[334295687,1722922828645,245.44,8.276e-05,2]
[334295688,1722922828673,3.38,8.276e-05,2]
[334295725,1722923305737,236.37,8.219e-05,2]
[334295731,1722923432392,-250.0,9.949e-05,2]
[334295732,1722923432402,-793.311,9.958e-05,2]
[334295733,1722923432412,-1030.68,9.964e-05,2]
[334295734,1722923432422,-169.81,0.00010008,2]
[334295735,1722923432432,-300.0,0.00010057,2]
[334295736,1722923432444,-300.0,0.00010057,2]
[334295737,1722923432455,-175.15767372,0.00010058,2]
[334295738,1722923432467,-286.73232628,0.00010058,2]
[334295739,1722923432476,-2675.52330296,0.00010058,2]
[334295740,1722923432489,-6036.6456329,0.00010058,2]
[334295741,1722923432501,-325.51106414,0.00010058,2]
[334295742,1722923432510,-201.81163686,0.0001014,2]
[334295743,1722923432530,-438.18836314,0.0001014,2]
[334295744,1722923432539,-360.0,0.0001043,2]
[334295745,1722923432549,-150.0,0.00010438,2]
[334295746,1722923432559,-252.85211675,0.00010463,2]
[334295747,1722923432568,-370.4067043,0.00010463,2]
[334295748,1722923432578,-236.37,0.00010477,2]
[334295749,1722923432588,-199.48,0.00010734,2]
[334295750,1722923432598,-194.32,0.00010734,2]
[334295751,1722923432607,-334.13,0.000108,2]
[334295752,1722923432617,-330.43,0.000108,2]
[334295753,1722923432627,-420.73,0.000108,2]
[334295755,1722923432636,-330.53,0.000108,2]
[334295756,1722923432646,-150.0,0.0001081,2]
[334295757,1722923432655,-151.44,0.0001081,2]
[334295758,1722923432664,-150.0,0.0001081,2]
[334295759,1722923432674,-150.0,0.0001081,2]
[334295760,1722923432683,-234.67474722,0.0001081,2]
[334295761,1722923432695,-121.57525278,0.0001081,2]
[334295762,1722923432704,-247.61245437,0.00010859,2]
[334295763,1722923432715,-1249.78872132,0.00010859,2]
[334295764,1722923432726,-805.63031946,0.00010859,2]
[334295765,1722923432737,-7604.47297998,0.00010859,2]
[334295766,1722923432748,-555.249,0.00010859,2]
[334295767,1722923432769,-2700.0,0.00010859,2]
[334295768,1722923432784,-1028.79,0.00010859,2]
[334295769,1722923432796,-4507.06363913,0.00010859,2]
[334295770,1722923432807,-7056.62238574,0.00010859,2]
[334295771,1722923432817,-150.0,0.00010889,2]
[334295772,1722923432827,-4469.58242464,0.0001089,2]
[334295783,1722923438305,-471.65960438,0.0001089,2]
[334295784,1722923438317,-123.67328864,0.0001089,2]
[334295785,1722923438326,-461.7449196,0.00010899,2]
[334295786,1722923438342,-600.75548508,0.00010899,2]
[334295787,1722923438374,-662.91369532,0.00010899,2]
[334295788,1722923438384,-8908.47993367,0.000109,2]
[334295789,1722923438414,-1173.98706814,0.000109,2]
[334295790,1722923438425,-2669.35211378,0.000109,2]
[334295791,1722923438437,-1847.439928,0.000109,2]
[334295792,1722923438453,-12561.75106199,0.000109,2]
[334295793,1722923438466,-676.53111901,0.000109,2]
[334295794,1722923438478,-714.662132,0.000109,2]
[334295795,1722923438490,-2228.58149743,0.000109,2]
[334295796,1722923438502,-398.64828018,0.000109,2]
[334295797,1722923438576,-323.90384961,0.000109,2]
[334295798,1722923438587,-688.5,0.000109,2]
[334295799,1722923438598,-502.69203317,0.000109,2]
[334295800,1722923438610,-583.72138748,0.000109,2]
[334295802,1722923438624,-710.95025,0.000109,2]
[334295803,1722923438640,-1375.2968142,0.000109,2]
[334295805,1722923438652,-394.12782113,0.000109,2]
[334295820,1722923441050,-413.7332465,0.000109,2]
[334295821,1722923441061,-1058.18044309,0.000109,2]
[334295822,1722923441072,-4170.03465609,0.000109,2]
[334295823,1722923441084,-403.47012699,0.000109,2]
[334295824,1722923441100,-1009.71667059,0.000109,2]
[334295825,1722923441125,-256.000163,0.000109,2]
[334295826,1722923441140,-45913.9920305,0.000109,2]
[334295827,1722923441153,-24110.77313087,0.000109,2]
[334295828,1722923441162,-1881.5522,0.000109,2]
[334295829,1722923441172,-329.9888,0.000109,2]
[334295830,1722923441181,-22827.0228,0.000109,2]
[334295831,1722923441191,-2215.1856,0.000109,2]
[334295832,1722923441200,-2661.4989,0.000109,2]
[334295833,1722923441209,-173.56915184,0.000109,2]
[334295834,1722923441219,-150.0,0.000109,2]
[334295835,1722923441228,-168.10634716,0.000109,2]
[334295836,1722923441237,-1206.0,0.000109,2]
[334295837,1722923441247,-250.0,0.00010959,2]
[334295838,1722923441257,-668.422,0.00010972,2]
[334295839,1722923441266,-688.5,0.00010972,2]
[334295840,1722923441275,-1925.0,0.00010972,2]
[334295841,1722923441286,-265.05,0.00010972,2]
[334295842,1722923441295,-5128.0,0.00010972,2]
[334295843,1722923441305,-4445.98,0.00010972,2]
[334295844,1722923441314,-1955.048,0.00010972,2]
[334295845,1722923441324,-1075.0,0.00010972,2]
[334295846,1722923441333,-150.0,0.00010972,2]
[334295847,1722923441342,-200.0,0.00010973,2]
[334295848,1722923441352,-200.0,0.00010973,2]
[334295849,1722923441362,-231.27387922,0.00010973,2]
[334295850,1722923441371,-200.16455709,0.00010973,2]
[334295851,1722923441381,-1080.3119394,0.00010998,2]
[334295852,1722923441390,-808.49354751,0.00010998,2]
[334295853,1722923441399,-1946.13006031,0.00010999,2]
[334295854,1722923441408,-179.20640641,0.00010999,2]
[334295855,1722923441418,-104663.81783704,0.00011,2]
[334295856,1722923441427,-8912.92108371,0.00011,2]
[334295857,1722923441439,-265.1286,0.00011,2]
[334295858,1722923441455,-1852.95989709,0.00011,2]
[334295859,1722923441466,-280.78331148,0.00011,2]
[334295860,1722923441478,-455.07799912,0.00011,2]
[334295863,1722923442919,150.0,0.00025,60]
[334295868,1722923443480,-6545.41599038,0.00011,2]
[334295869,1722923443492,-8798.02859357,0.00011,2]
[334295870,1722923443503,-19285.75170967,0.00011,2]
[334295887,1722923444071,-2129.93328455,0.00011,2]
[334295888,1722923444083,-261.4769987,0.00011,2]
[334295889,1722923444099,-617.09770384,0.00011,2]
[334295890,1722923444110,-303927.07421044,0.00011,2]
[334295891,1722923444121,-461.72228719,0.00011,2]
[334295892,1722923444132,-6099.87879838,0.00011,2]
[334295898,1722923447462,-5948.71108862,0.000109,2]
[334295899,1722923447473,-565.134902,0.000109,2]
[334295900,1722923447484,-8499.85506002,0.000109,2]
[334295901,1722923447496,-2237.64041114,0.000109,2]
[334295902,1722923447505,-200.0,0.00010973,2]
[334295903,1722923447514,-13850.76597404,0.00011,2]
[334295904,1722923447526,-2789.4,0.00011,2]
[334295905,1722923447536,-949.65,0.00011,2]
[334295906,1722923447549,-432.05266282,0.00011,2]
[334295907,1722923447560,-2128.25710598,0.00011,2]
[334295908,1722923447571,-2066.50353201,0.00011,2]
[334295909,1722923447582,-6330.0,0.00011,2]
[334295974,1722923524524,53530.90529908,0.00025,60]
[334295976,1722923730906,-500.0,9.957e-05,2]
[334295977,1722923730931,-164.43,0.00010279,2]
[334295978,1722923730953,-164.43,0.00010284,2]
[334295979,1722923730977,-164.43,0.0001029,2]
[334295980,1722923730998,-164.43,0.00010296,2]
[334295981,1722923731022,-164.43,0.00010301,2]
[334295982,1722923731044,-164.43,0.00010307,2]
[334295983,1722923731073,-164.43,0.00010313,2]
[334295984,1722923731095,-164.43,0.00010319,2]
[334295985,1722923731116,-164.43,0.00010324,2]
[334295986,1722923731137,-164.43,0.0001033,2]
[334295987,1722923731157,-2417.0,0.00010799,2]
[334295988,1722923731178,-1741.6455,0.000108,2]
[334295989,1722923731199,-300.0,0.00010889,2]
[334295990,1722923731219,-3000.0,0.0001089,2]
[334295991,1722923731241,-1076.7709435,0.000109,2]